bitfinex/quotes_ETHUSD_20241123
["timestamp","ask_amount","ask_price","bid_price","bid_amount"]
[1732347312458,0.8121,3328.3,3327.4,0.2991]
[1732347312808,0.8121,3328.3,3327.1,0.2991]
[1732347313096,0.8121,3328.3,3327.4,3.0]
[1732347313282,0.8121,3328.1,3326.2,0.86075797]
[1732347313491,0.8121,3328.0,3326.5,0.38292448]
[1732347313685,0.8121,3328.0,3326.6,0.2991]
[1732347314204,0.55,3327.9,3326.6,0.2991]
[1732347314365,0.8121,3327.8,3326.6,0.2991]
[1732347315264,0.8121,3327.5,3326.0,0.2991]
[1732347315490,0.8121,3327.5,3326.2,0.2991]
[1732347315690,0.8121,3327.5,3326.2,0.69404709]
[1732347317474,0.55,3327.4,3326.2,0.69404709]
[1732347317710,0.8121,3327.3,3326.2,0.69404709]
[1732347318903,0.8121,3327.3,3326.5,3.0]
[1732347319716,0.8121,3327.3,3326.2,0.69404709]
[1732347319874,0.8121,3327.3,3326.5,3.0]
[1732347320310,0.8121,3327.3,3326.2,0.69404709]
[1732347321276,1.91623336,3327.9,3326.2,0.39494709]
[1732347321277,1.91623336,3327.1,3326.2,0.39494709]
[1732347321506,1.91623336,3327.1,3326.2,3.0]
[1732347321507,0.8056,3326.9,3326.2,3.0]
[1732347321807,0.8056,3326.7,3325.2,0.7209612]
[1732347321993,0.55,3326.6,3325.2,0.35101411]
[1732347322310,0.8056,3326.5,3325.2,0.2991]
[1732347322512,0.55,3326.4,3325.1,0.2991]
[1732347322673,0.754,3326.3,3325.1,0.2991]
[1732347323483,0.754,3326.1,3324.5,1.0653]
[1732347323900,0.754,3326.1,3324.4,0.2991]
[1732347324676,0.754,3326.1,3324.4,0.65011411]
[1732347324889,0.754,3326.1,3324.6,0.2991]
[1732347325428,0.754,3326.1,3325.1,3.0]
[1732347325912,0.754,3326.1,3324.8,0.2991]
[1732347326091,0.754,3326.1,3324.9,0.66904709]
[1732347326421,0.754,3326.1,3324.9,0.2991]
[1732347326929,0.754,3326.1,3325.1,3.0]
[1732347327607,0.754,3326.1,3324.8,4.05907664]
[1732347327814,0.754,3326.1,3325.5,0.2991]
[1732347327981,0.754,3326.1,3325.8,0.2991]
[1732347330214,0.754,3326.1,3325.3,0.2991]
[1732347330723,0.754,3326.1,3325.8,0.2991]
[1732347332122,0.754,3326.1,3325.9,0.2991]
[1732347332436,0.754,3326.1,3325.9,0.37436446]
[1732347336820,0.754,3327.0,3325.9,0.37436446]
[1732347337028,0.754,3327.0,3325.6,0.2991]
[1732347337346,0.754,3327.0,3325.8,0.2991]
[1732347337922,0.754,3327.0,3326.0,0.2991]
[1732347338334,0.754,3327.0,3326.2,0.2991]
[1732347338946,0.754,3327.0,3326.4,0.2991]
[1732347339311,0.754,3327.0,3326.6,0.2991]
[1732347339541,0.8014,3327.7,3326.8,0.2991]
[1732347339745,0.8014,3327.7,3326.7,0.07492428]
[1732347339746,0.8014,3327.7,3327.0,0.2991]
[1732347340109,0.8014,3327.7,3327.2,0.2991]
[1732347341027,0.8014,3327.7,3327.3,0.07465214]
[1732347341203,0.8014,3327.7,3327.4,0.2991]
[1732347342203,0.8014,3327.7,3326.8,0.2991]
[1732347342710,0.8014,3327.7,3327.0,0.2991]
[1732347343019,0.8014,3327.7,3327.2,0.2991]
[1732347343219,0.8014,3327.7,3327.1,0.07462364]
[1732347343430,0.8014,3327.7,3326.8,3.0]
[1732347343752,0.55,3327.6,3326.8,3.0]
[1732347343911,0.7789,3327.5,3326.9,0.07219251]
[1732347344111,0.7789,3327.5,3326.8,3.0]
[1732347344309,0.7789,3327.5,3326.2,0.2991]
[1732347344552,0.7789,3327.5,3326.9,0.2991]
[1732347344959,0.7789,3327.5,3327.0,0.37202029]
[1732347345107,0.7789,3327.5,3327.0,0.2991]
[1732347345849,0.7789,3327.5,3327.1,0.07288622]
[1732347346651,0.7789,3327.5,3326.9,0.2991]
[1732347347149,0.7789,3327.5,3327.0,0.37203235]
[1732347347613,0.7789,3327.5,3327.0,0.2991]
[1732347348449,0.7789,3327.5,3327.1,0.07275028]
[1732347348649,0.7789,3327.3,3326.5,0.2991]
[1732347348846,0.7789,3327.3,3325.7,0.33231608]
[1732347348847,0.6992635,3327.3,3326.6,0.36928125]
[1732347349194,0.6992635,3327.3,3326.6,0.2991]
[1732347349762,0.55,3327.4,3326.6,0.2991]
[1732347350072,0.55,3327.7,3326.6,0.2991]
[1732347350227,0.76078567,3327.7,3326.7,0.07014718]
[1732347350570,0.76078567,3327.7,3326.6,0.2991]
[1732347350979,0.76078567,3327.7,3326.2,0.2991]
[1732347351148,0.76078567,3327.7,3326.7,0.07048147]
[1732347351348,0.76078567,3327.7,3326.2,0.2991]
[1732347351656,0.76078567,3327.7,3326.4,3.2991]
[1732347351877,0.7789,3327.6,3326.6,0.2991]
[1732347352175,0.7789,3327.4,3326.5,0.2991]
[1732347352335,0.43811908,3327.3,3326.7,0.06814399]
[1732347352530,0.27748098,3327.2,3326.5,0.2991]
[1732347352737,0.27748098,3327.2,3326.6,0.36727808]
[1732347353138,0.27748098,3327.3,3326.6,0.36727808]
[1732347353340,0.27748098,3327.2,3326.6,0.36727808]
[1732347353569,0.27748098,3327.1,3326.6,0.36727808]
[1732347353771,0.27748098,3327.0,3326.6,0.36727808]
[1732347353972,0.27748098,3326.9,3326.6,0.36727808]
[1732347354173,0.27748098,3326.8,3326.6,0.36727808]
[1732347354390,0.7789,3327.4,3326.6,0.36727808]
[1732347354550,0.27763061,3327.3,3326.6,0.36727808]
[1732347355158,0.43828367,3327.3,3326.6,0.36727808]
[1732347355360,0.21078567,3327.7,3326.8,0.2991]
[1732347355361,0.98968567,3327.7,3326.8,0.2991]
[1732347355562,0.7789,3327.7,3326.8,0.2991]
[1732347355888,1.91623336,3328.5,3327.0,0.2991]
[1732347355889,0.7789,3327.5,3327.0,0.2991]
[1732347356094,0.27776301,3327.4,3327.2,0.2991]
[1732347356384,0.27776301,3327.4,3327.3,0.36708167]
[1732347356550,0.27776301,3327.4,3326.8,0.2991]
[1732347356751,0.27776301,3327.3,3327.0,0.2991]
[1732347356948,0.7789,3327.5,3327.2,0.2991]
[1732347357145,0.2778284,3327.4,3327.2,0.2991]
[1732347357366,0.2778284,3327.3,3327.2,0.2991]
[1732347357879,0.2778284,3327.3,3327.2,0.36476769]
[1732347360013,0.27796283,3327.3,3327.2,0.36476769]
[1732347360509,0.27796283,3327.3,3326.3,0.65331413]
[1732347360720,0.7789,3327.5,3327.2,0.06346174]
[1732347360874,0.27797364,3327.4,3326.3,0.5139]
[1732347361074,0.27797364,3327.3,3326.7,3.0]
[1732347361411,0.27797364,3327.2,3326.8,0.06359804]
[1732347361620,0.27797364,3327.1,3326.8,0.06359804]
[1732347361783,0.27797364,3327.0,3326.3,0.5139]
[1732347361991,0.7789,3327.5,3326.9,0.06356396]
[1732347362281,0.27804735,3327.4,3327.0,0.06318424]
[1732347362489,0.27804735,3327.3,3326.7,3.0]
[1732347362684,0.27804735,3327.2,3326.8,0.06325237]
[1732347362886,0.27804735,3327.1,3326.7,3.0]
[1732347363078,0.27804735,3327.0,3326.8,0.06358665]
[1732347363414,0.27804735,3326.9,3326.4,0.33231608]
[1732347363579,0.04354736,3326.8,3326.5,0.7598]
[1732347363775,0.7789,3327.5,3326.5,0.7598]
[1732347365420,0.23449999,3327.5,3326.5,0.78986032]
[1732347365580,1.91623336,3328.1,3326.6,0.2991]
[1732347365781,0.55,3328.4,3326.6,0.66904709]
[1732347366009,0.24662334,3328.3,3326.8,0.2991]
[1732347366325,0.24662334,3328.3,3327.3,0.2991]
[1732347366481,1.91623336,3328.9,3327.5,0.2991]
[1732347366832,1.91623336,3329.3,3327.9,3.0]
[1732347367133,0.19162334,3329.2,3328.0,0.2991]
[1732347367633,0.55,3329.1,3328.0,0.2991]
[1732347367998,0.55,3329.1,3327.5,0.2991]
[1732347368612,0.8231,3328.8,3327.5,0.2991]
[1732347369545,0.8231,3328.6,3327.5,0.2991]
[1732347371221,0.8231,3328.6,3328.5,3.2991]
[1732347371404,0.8231,3328.6,3327.5,0.2991]
[1732347372301,0.79939766,3328.6,3327.6,0.2991]
[1732347373101,0.79939766,3328.6,3327.8,0.2991]
[1732347373549,0.19162334,3329.2,3327.8,0.2991]
[1732347373759,1.91623336,3329.8,3328.0,0.2991]
[1732347374050,1.91623336,3329.8,3329.4,0.2991]
[1732347374223,1.91623336,3329.8,3329.3,0.2991]
[1732347374428,0.8231,3329.6,3328.5,0.49612]
[1732347375244,0.8231,3329.6,3328.6,0.2991]
[1732347377151,0.8231,3329.6,3328.8,0.2991]
[1732347377338,0.8231,3329.6,3329.0,0.2991]
[1732347377520,0.8231,3329.6,3329.2,0.2991]
[1732347377728,0.8231,3329.6,3329.4,0.2991]
[1732347378177,0.8231,3329.6,3328.2,0.7588]
[1732347378339,0.8231,3329.6,3328.3,0.06084132]
[1732347379046,0.8231,3329.6,3328.4,0.2991]
[1732347379450,0.8231,3329.6,3328.6,0.2991]
[1732347379831,0.8231,3329.6,3328.8,0.2991]
[1732347380232,0.8231,3329.6,3329.0,0.2991]
[1732347380922,0.8231,3329.6,3329.1,0.06052786]
[1732347381262,0.8231,3329.6,3329.2,0.2991]
[1732347381644,0.8231,3329.6,3329.4,0.2991]
[1732347382013,0.8231,3329.6,3328.2,0.7588]
[1732347382552,0.8231,3329.6,3328.3,0.05666171]
[1732347382723,1.3731,3329.6,3329.5,3.2991]
[1732347382927,1.64283334,3329.6,3329.5,3.05414116]
[1732347383125,0.55,3329.4,3327.8,0.74268228]
[1732347383353,0.55,3329.0,3327.2,0.27398435]
[1732347383661,0.7639,3328.7,3327.2,0.60630043]
[1732347383845,0.7639,3328.7,3327.3,0.2991]
[1732347384862,0.7639,3328.7,3327.5,0.2991]
[1732347385213,0.7639,3328.7,3328.5,0.2991]
[1732347385617,0.7639,3328.7,3328.6,0.04872457]
[1732347385834,0.7639,3328.7,3328.5,0.2991]
[1732347386261,0.7639,3328.7,3327.6,0.2991]
[1732347386647,0.7639,3328.7,3327.7,0.0493585]
[1732347390837,0.7639,3328.7,3328.3,0.2991]
[1732347391178,0.7639,3328.5,3328.4,0.04749672]
[1732347391487,0.7639,3328.4,3326.8,0.8179]
[1732347391785,0.7639,3328.4,3326.9,0.04447816]
[1732347392100,0.7639,3328.4,3326.9,0.34357816]
[1732347397077,0.7639,3328.0,3326.9,0.2991]
[1732347397278,0.55,3327.7,3327.0,0.04297498]
[1732347397437,0.82,3327.6,3327.0,0.04297498]
[1732347397633,0.82,3327.6,3326.4,0.2991]
[1732347398092,0.82,3327.6,3326.5,0.04314541]
[1732347398337,0.82,3327.6,3326.6,0.2991]
[1732347398581,0.82,3327.6,3326.7,0.04307723]
[1732347401741,0.82,3327.6,3326.8,0.2991]
[1732347401941,0.82,3327.6,3326.9,0.04159169]
[1732347402884,0.521,3327.6,3326.7,1.65759061]
[1732347403093,0.521,3327.6,3327.0,0.04017121]
[1732347403297,0.521,3327.6,3326.8,0.63314786]
[1732347403583,1.91381338,3329.3,3327.3,0.2991]
[1732347403786,0.25193628,3329.2,3327.3,0.2991]
[1732347404090,0.25193628,3329.2,3327.4,0.0400349]
[1732347405083,0.55,3329.1,3327.4,0.0400349]
[1732347405380,0.25193628,3329.2,3327.4,0.0400349]
[1732347405588,1.91381338,3328.9,3327.4,0.0400349]
[1732347405788,0.19138134,3328.8,3327.4,0.0400349]
[1732347406281,1.91381338,3328.1,3327.5,0.03824956]
[1732347406477,0.7529,3328.0,3327.5,0.03824956]
[1732347406688,0.7529,3327.7,3326.8,0.23212578]
[1732347407092,0.7529,3327.7,3326.9,0.03848873]
[1732347407586,0.7529,3327.7,3326.4,0.16515156]
[1732347407973,0.7529,3327.7,3326.5,0.03896992]
[1732347412015,0.7529,3327.7,3326.6,0.16515156]
[1732347412246,0.7529,3327.7,3326.7,0.03898335]
[1732347412900,0.4539,3327.7,3326.8,1.91381338]
[1732347413105,0.4539,3327.7,3326.9,0.96068134]
[1732347413303,1.91381338,3328.9,3326.9,0.9907379]
[1732347413488,0.25193628,3329.2,3326.9,0.9907379]
[1732347413489,0.25193628,3329.2,3327.3,0.2991]
[1732347413689,1.91381338,3329.3,3327.3,0.2991]
[1732347413998,1.91381338,3329.3,3327.4,0.03742433]
[1732347414568,0.55,3329.2,3327.4,0.03742433]
[1732347415255,0.56,3329.2,3327.4,0.03742433]
[1732347415455,0.55,3329.2,3327.4,0.03742433]
[1732347415822,0.7529,3328.7,3327.4,0.03742433]
[1732347416113,0.7529,3328.5,3327.4,0.03742433]
[1732347418265,0.7529,3328.5,3327.6,0.2991]
[1732347418680,0.7529,3328.5,3327.7,0.03725492]
[1732347420206,0.7529,3328.5,3327.4,0.2991]
[1732347420510,0.7529,3328.5,3327.5,0.03730275]
[1732347421687,0.7529,3328.5,3327.6,2.24296279]
[1732347422019,0.8113,3329.6,3327.8,0.2991]
[1732347422317,0.8113,3329.4,3328.0,0.2991]
[1732347422670,0.8113,3329.4,3328.1,0.03705272]
[1732347423174,0.8113,3329.4,3328.1,0.33615272]
[1732347423878,0.8113,3329.4,3328.1,1.0923782]
[1732347424285,0.55,3329.3,3328.1,1.0923782]
[1732347424481,0.7845,3329.5,3328.1,1.0923782]
[1732347424693,0.7845,3329.3,3328.1,1.0923782]
[1732347425014,0.7845,3329.1,3328.1,1.0923782]
[1732347427185,0.7845,3329.1,3328.1,4.0923782]
[1732347427460,0.7845,3329.1,3328.3,0.2991]
[1732347427867,0.7845,3329.1,3328.4,0.03690034]
[1732347430163,0.7845,3329.1,3328.2,0.2991]
[1732347430362,0.7845,3329.1,3329.0,0.2991]
[1732347430569,0.7845,3329.1,3327.9,0.03004232]
[1732347430776,0.7845,3329.1,3329.0,0.03626272]
[1732347430940,0.7845,3329.1,3327.8,0.7658]
[1732347431266,0.7845,3329.1,3327.9,0.03663718]
[1732347431420,0.7845,3329.1,3327.9,0.33573718]
[1732347432946,0.4855,3329.1,3327.9,0.2991]
[1732347433166,0.4855,3329.1,3328.0,0.03571506]
[1732347433385,0.4855,3329.1,3328.0,0.25493699]
[1732347433528,0.4855,3329.1,3328.1,0.2991]
[1732347433950,0.4855,3329.1,3328.2,0.03564084]
[1732347435723,0.55,3330.0,3328.3,0.2991]
[1732347435929,0.55,3329.8,3328.3,0.2991]
[1732347436149,0.55,3329.8,3328.4,0.03562085]
[1732347436356,0.7845,3329.7,3328.4,0.03562085]
[1732347436530,0.55,3329.6,3328.3,0.2991]
[1732347436724,0.55,3329.4,3327.9,0.2991]
[1732347437034,0.7845,3329.3,3327.9,0.2991]
[1732347437351,0.7845,3329.3,3328.0,0.03575709]
[1732347441635,0.7845,3329.3,3327.9,0.2991]
[1732347441636,0.55,3329.2,3328.1,0.03567386]
[1732347441837,0.55,3328.8,3328.1,0.03567386]
[1732347442036,0.55,3328.6,3327.2,0.2991]
[1732347442277,0.55,3328.4,3327.3,0.03466202]
[1732347442491,0.55,3328.2,3327.2,1.04717375]
[1732347442634,0.7791,3328.1,3327.4,0.03342631]
[1732347442833,1.91381338,3328.9,3326.6,0.2991]
[1732347442834,0.55,3328.0,3326.6,0.2991]
[1732347443185,0.7791,3327.7,3327.1,0.33248134]
[1732347444275,0.7791,3327.7,3327.1,0.03338134]
[1732347444642,0.7791,3327.7,3327.6,0.2991]
[1732347444865,0.7791,3327.7,3327.6,0.3322219]
[1732347445078,0.7791,3327.7,3327.6,0.0331219]
[1732347445580,0.7791,3327.7,3327.1,0.74209394]
[1732347445969,0.7791,3327.7,3327.3,0.2991]
[1732347446334,0.7791,3327.7,3327.4,0.03325672]
[1732347447380,0.7791,3327.7,3327.1,0.2991]
[1732347447570,0.7791,3327.7,3327.5,0.03421148]
[1732347447874,0.7791,3327.7,3327.6,0.03326723]
[1732347448253,0.7791,3327.7,3327.6,0.2991]
[1732347448451,0.7791,3327.7,3327.6,0.33216302]
[1732347449234,0.7791,3327.7,3327.6,0.03306302]
[1732347449438,0.7791,3327.7,3327.6,0.2991]
[1732347449723,0.7791,3327.7,3327.6,0.33219721]
[1732347454098,0.19138134,3328.8,3327.6,0.33219721]
[1732347454396,1.93381338,3328.9,3327.9,0.2991]
[1732347454757,1.92381338,3328.9,3328.0,0.03310821]
[1732347455151,1.92381338,3328.9,3327.9,0.2991]
[1732347455395,0.55,3328.7,3328.0,0.33220821]
[1732347455557,0.55,3328.7,3327.5,0.2991]
[1732347455767,0.55,3328.7,3327.6,0.03214082]
[1732347455969,0.55,3328.7,3327.5,0.2991]
[1732347456175,0.55,3328.7,3327.6,0.03211952]
[1732347456399,0.55,3328.7,3326.9,0.2991]
[1732347456597,0.55,3328.4,3327.0,0.0323239]
[1732347456904,0.55,3328.2,3327.0,0.0323239]
[1732347457099,0.7791,3328.1,3327.0,0.0323239]
[1732347457255,0.55,3327.8,3327.0,0.0323239]
[1732347457457,0.7791,3327.7,3327.0,0.0323239]
[1732347457665,0.4801,3327.7,3326.9,0.2991]
[1732347457907,0.4801,3327.7,3327.1,0.03108642]
[1732347458077,0.4801,3327.7,3327.0,0.03112048]
[1732347458392,0.4801,3327.7,3327.1,0.03108642]
[1732347458601,0.4801,3327.7,3326.9,0.2991]
[1732347458801,0.55,3327.8,3327.0,0.03004698]
[1732347458958,0.55,3327.8,3326.6,1.03111667]
[1732347459298,0.55,3328.0,3326.6,0.73201667]
[1732347459457,0.55,3327.8,3326.7,0.02928633]
[1732347459854,0.55,3327.8,3326.3,0.2991]
[1732347460058,0.55,3327.8,3326.8,0.02925225]
[1732347460301,0.55,3327.8,3326.3,0.2991]
[1732347460497,0.55,3327.8,3326.9,0.02921818]
[1732347460701,0.7955,3327.7,3326.3,0.63141608]
[1732347461002,0.55,3327.4,3326.5,0.2991]
[1732347461300,0.55,3327.4,3326.6,0.0292778]
[1732347462475,0.55,3327.4,3326.6,0.3283778]
[1732347463369,0.8234,3327.3,3326.6,0.0292778]
[1732347463565,0.8234,3327.3,3326.3,0.2991]
[1732347463768,0.8234,3327.3,3326.4,0.02960928]
[1732347469174,0.8234,3327.3,3326.4,0.02830382]
[1732347475611,0.8234,3327.3,3326.6,3.2991]
[1732347475921,0.8234,3327.3,3326.7,0.0282126]
[1732347476646,0.8234,3327.3,3326.7,0.3273126]
[1732347477556,0.8234,3327.3,3326.8,0.2991]
[1732347477710,0.5244,3327.3,3326.7,0.0282126]
[1732347477905,0.5244,3327.3,3326.6,0.8249]
[1732347478137,1.91381338,3328.5,3326.8,0.02725662]
[1732347478353,1.91381338,3328.5,3326.6,3.8249]
[1732347478354,1.91381338,3328.5,3326.7,0.0272907]
[1732347478648,1.38877334,3328.4,3326.8,0.02890126]
[1732347478818,0.19138134,3328.4,3326.8,0.02890126]
[1732347479017,1.91381338,3328.9,3326.8,0.02890126]
[1732347479223,1.197287,3328.7,3326.8,0.02890126]
[1732347479532,1.91381338,3328.9,3327.0,0.2991]
[1732347479794,1.197247,3328.8,3327.0,0.2991]
[1732347479968,0.31110604,3328.7,3327.1,0.02877126]
[1732347480758,0.7808,3328.5,3327.1,0.02877126]
[1732347480908,0.7808,3328.3,3327.1,0.02877126]
[1732347482213,0.55,3328.2,3327.1,0.02877126]
[1732347482407,0.7683,3328.1,3327.0,0.2991]
[1732347482744,0.55,3327.7,3327.1,0.03018458]
[1732347483057,0.7876,3327.6,3326.7,0.2991]
[1732347483253,0.7876,3327.6,3326.8,0.03027996]
[1732347484757,0.7876,3327.4,3326.8,0.03027996]
[1732347486522,0.7876,3327.2,3326.8,0.03027996]
[1732347486867,0.7876,3327.2,3326.7,0.2991]
[1732347487164,0.7876,3327.2,3326.5,0.2991]
[1732347487462,0.7876,3327.2,3326.8,0.2991]
[1732347487839,0.55,3327.7,3326.4,0.33231608]
[1732347488241,1.91381338,3327.7,3326.5,0.2991]
[1732347488452,0.74138134,3327.6,3325.9,0.2991]
[1732347490842,0.7527,3327.3,3325.9,0.2991]
[1732347491866,0.7527,3327.3,3326.0,0.756]
[1732347492073,0.7527,3327.3,3326.1,0.2991]
[1732347493971,0.7527,3327.3,3325.9,0.2991]
[1732347494178,0.7527,3327.3,3326.2,0.2991]
[1732347494470,0.7527,3326.9,3325.7,0.2991]
[1732347495338,0.55,3326.8,3325.7,0.2991]
[1732347495670,0.7527,3326.7,3325.7,0.2991]
[1732347497050,0.7527,3326.7,3326.5,0.2991]
[1732347497937,0.7527,3326.7,3325.7,0.2991]
[1732347498868,0.73838542,3326.7,3325.7,0.2991]
[1732347499375,0.73838542,3326.7,3325.8,0.2991]
[1732347500373,0.73838542,3326.7,3325.4,0.2991]
[1732347502551,0.70851276,3326.7,3325.4,0.2991]
[1732347504937,0.55,3326.6,3325.4,0.2991]
[1732347505133,0.19138134,3327.1,3325.4,0.2991]
[1732347505381,0.55,3327.0,3325.4,0.2991]
[1732347505686,0.7625,3326.9,3325.4,0.2991]
[1732347505848,0.7625,3326.7,3325.4,0.2991]
[1732347507408,0.7625,3326.7,3325.4,1.0722]
[1732347507559,0.7625,3326.7,3325.9,0.2991]
[1732347507901,0.4635,3326.7,3325.9,0.2991]
[1732347510584,2.51483203,3328.0,3325.9,0.2991]
[1732347510789,0.7625,3327.8,3325.9,0.2991]
[1732347511994,0.7625,3327.6,3325.9,0.2991]
[1732347516607,0.7625,3327.6,3325.9,1.05214899]
[1732347516810,0.7625,3327.6,3325.9,0.2991]
[1732347517120,0.7625,3327.6,3326.1,0.2991]
[1732347517274,0.7625,3327.6,3326.3,1.0722]
[1732347517476,0.7625,3327.6,3326.4,0.03006045]
[1732347517786,0.7625,3327.6,3326.5,0.2991]
[1732347517991,0.7625,3327.6,3326.5,0.299]
[1732347518674,0.7625,3327.6,3326.6,0.299]
[1732347519776,0.7625,3327.6,3326.7,0.299]
[1732347520687,0.7625,3327.6,3326.2,0.299]
[1732347522508,0.7772,3327.4,3326.2,0.299]
[1732347528807,2.46381338,3327.3,3326.2,0.299]
[1732347529012,0.7772,3327.1,3326.2,0.299]
[1732347532125,0.7772,3326.9,3326.2,0.299]
[1732347532450,0.7772,3326.9,3325.2,0.299]
[1732347532657,0.7772,3326.9,3325.4,0.299]
[1732347533622,0.7772,3326.9,3325.2,0.299]
[1732347534811,0.7772,3326.7,3325.2,0.299]
[1732347535823,0.7772,3326.5,3325.2,0.299]
[1732347542834,0.55,3326.8,3325.2,0.299]
[1732347545764,0.8251,3326.7,3325.2,0.299]
[1732347546762,0.8251,3326.7,3325.5,0.299]
[1732347548038,0.8251,3326.7,3325.4,0.299]
[1732347548535,0.8251,3326.7,3326.4,0.299]
[1732347548733,0.90685832,3326.6,3325.4,0.299]
[1732347549044,0.7916,3326.5,3325.4,0.299]
[1732347550771,0.7916,3326.5,3325.7,0.299]
[1732347552655,0.7916,3326.5,3326.4,0.299]
[1732347553798,0.7916,3326.5,3326.1,0.299]
[1732347554001,0.7916,3327.6,3326.3,0.299]
[1732347554812,0.7916,3327.6,3326.8,0.299]
[1732347555663,0.7916,3327.6,3326.7,0.299]
[1732347556662,0.7916,3327.6,3326.6,0.299]
[1732347557872,0.7916,3327.6,3326.2,1.0666]
[1732347558071,0.7916,3327.6,3326.2,4.0666]
[1732347559299,0.7916,3327.6,3326.2,4.79643034]
[1732347560168,0.7916,3327.6,3326.4,0.299]
[1732347560813,0.7916,3327.6,3326.6,3.299]
[1732347560962,0.7916,3327.6,3326.6,3.32905702]
[1732347561367,0.7916,3327.6,3326.6,3.299]
[1732347562394,0.7916,3327.6,3326.6,3.3290574]
[1732347562605,0.7916,3327.6,3326.6,3.0300574]
[1732347562911,0.7916,3327.6,3326.8,0.299]
[1732347563780,0.7916,3327.6,3326.6,0.299]
[1732347564686,0.7916,3327.6,3326.6,3.299]
[1732347566016,0.7916,3327.6,3326.2,1.082]
[1732347566221,0.7916,3327.6,3326.2,0.299]
[1732347567398,0.55,3327.3,3325.7,4.9143524]
[1732347567594,0.788,3327.2,3325.7,5.16578209]
[1732347568413,0.788,3327.2,3325.8,0.299]
[1732347569079,0.788,3327.2,3326.0,0.299]
[1732347571480,0.788,3327.2,3326.0,0.32906215]
[1732347571888,0.788,3327.2,3326.2,0.299]
[1732347572196,0.788,3327.2,3326.6,0.299]
[1732347572381,1.9143524,3328.6,3326.8,0.299]
[1732347572577,1.9143524,3328.6,3327.0,0.299]
[1732347573299,3.1117414,3329.0,3327.0,0.299]
[1732347573812,0.55,3328.7,3327.0,0.299]
[1732347575382,0.55,3328.7,3326.7,0.97609794]
[1732347575383,0.7042,3328.4,3326.8,0.299]
[1732347577086,0.7042,3328.4,3326.7,0.7544627]
[1732347577286,0.7042,3328.4,3326.7,0.299]
[1732347580398,0.7042,3328.1,3326.7,0.299]
[1732347580612,0.55,3328.0,3326.7,0.299]
[1732347580795,0.7042,3327.9,3326.7,0.299]
[1732347582689,0.7042,3327.9,3326.2,0.03006008]
[1732347582690,0.7042,3327.7,3326.2,0.299]
[1732347582895,0.7042,3327.5,3326.2,0.299]
[1732347583116,0.31685524,3327.6,3326.2,0.299]
[1732347583117,1.9143524,3327.4,3326.2,0.299]
[1732347583315,0.55,3327.2,3326.2,0.299]
[1732347583521,0.7042,3327.1,3326.2,0.299]
[1732347583689,0.7042,3327.1,3325.6,0.299]
[1732347585032,0.7042,3327.1,3325.6,1.0578698]
[1732347585231,0.7042,3327.1,3325.6,0.299]
[1732347590721,0.7042,3327.1,3325.6,1.03452511]
[1732347590963,0.7042,3327.1,3325.6,0.299]
[1732347592821,0.7042,3327.1,3325.5,0.73028899]
[1732347592822,0.7042,3326.8,3325.2,0.786]
[1732347593048,0.7042,3326.8,3324.5,0.03006845]
[1732347593049,0.55,3326.3,3324.5,2.7003524]
[1732347593256,0.7042,3326.2,3324.5,2.7003524]
[1732347593420,0.7042,3326.2,3324.6,0.29962526]
[1732347593619,0.7042,3326.2,3324.7,0.299]
[1732347594460,1.9143524,3326.5,3324.5,1.9143524]
[1732347594461,0.7042,3325.8,3324.5,0.74352835]
[1732347594619,0.7042,3325.8,3324.1,1.9143524]
[1732347594827,0.7042,3325.8,3324.2,0.22102526]
[1732347595949,0.7042,3325.8,3324.3,0.299]
[1732347597558,0.55,3325.5,3323.8,0.299]
[1732347597855,0.7042,3325.4,3323.8,2.2133524]
[1732347598068,0.7042,3325.4,3324.0,0.299]
[1732347600022,0.7042,3325.4,3323.9,0.22133524]
[1732347600023,0.55,3325.5,3323.9,0.299]
[1732347600176,0.7042,3325.2,3323.9,0.299]
[1732347600692,0.7042,3325.2,3323.9,4.0671]
[1732347600889,0.7042,3325.2,3323.9,0.299]
[1732347601651,0.7042,3325.2,3324.0,0.7681]
[1732347603289,0.7042,3325.2,3323.9,0.299]
[1732347603498,0.7042,3325.2,3323.9,0.52033524]
[1732347605078,0.7042,3325.2,3324.3,3.299]
[1732347607111,0.7042,3325.2,3324.6,1.9140524]
[1732347607268,0.59438014,3326.5,3324.6,1.9140524]
[1732347607269,0.7042,3325.5,3324.6,1.9140524]
[1732347607669,0.7042,3325.5,3324.7,0.299]
[1732347609412,0.7042,3325.5,3324.8,0.299]
[1732347610413,0.7042,3325.5,3324.3,0.299]
[1732347611378,0.7042,3325.5,3324.4,0.03008001]
[1732347611723,0.7042,3325.5,3324.3,0.299]
[1732347611872,0.7042,3325.5,3324.2,2.10578764]
[1732347611873,0.7042,3325.5,3325.0,0.299]
[1732347612984,0.7042,3325.5,3324.5,0.299]
[1732347613184,0.7042,3325.5,3324.5,0.56832524]
[1732347614217,0.7042,3325.5,3324.5,0.299]
[1732347614518,0.7042,3325.5,3324.6,0.299]
[1732347615710,0.7042,3325.5,3324.7,0.299]
[1732347616215,0.7042,3325.5,3323.9,1.9143524]
[1732347616420,1.9143524,3325.8,3324.0,0.299]
[1732347616421,0.7042,3325.3,3324.0,0.299]
[1732347616633,0.7042,3325.3,3323.8,0.299]
[1732347620728,0.7042,3325.3,3323.8,0.32908194]
[1732347621020,0.7042,3325.3,3324.0,0.299]
[1732347622106,0.7042,3325.3,3323.8,0.299]
[1732347627810,0.7042,3325.3,3323.9,0.03008329]
[1732347628017,0.7042,3325.3,3323.8,0.299]